bitfinex/quotes_SOLUSD_20241127
["timestamp","ask_amount","ask_price","bid_price","bid_amount"]
[1732729534753,8.01587132,239.61,239.51,12.19097132]
[1732729535141,20.0,239.62,239.51,12.19097132]
[1732729535465,8.01587132,239.61,239.51,12.19097132]
[1732729535633,20.0,239.58,239.51,8.01587132]
[1732729536253,20.0,239.58,239.49,23.15897132]
[1732729536866,1.2522,239.57,239.49,23.15897132]
[1732729537355,1.2522,239.57,239.49,27.33437132]
[1732729537536,20.0,239.57,239.53,8.01587132]
[1732729537736,21.2521,239.59,239.53,8.01587132]
[1732729538136,1.2521,239.59,239.53,8.01587132]
[1732729538334,1.252,239.61,239.53,8.01587132]
[1732729538532,1.252,239.61,239.55,8.01587132]
[1732729541261,8.01587132,239.58,239.5,4.1753]
[1732729541469,8.01587132,239.57,239.49,19.3186]
[1732729541641,6.0921056,239.58,239.51,8.01587132]
[1732729542462,7.3443056,239.58,239.51,8.01587132]
[1732729543851,23.00044435,239.67,239.57,8.01587132]
[1732729544055,23.00044435,239.67,239.5,4.1753]
[1732729544056,16.4534,239.67,239.59,8.01587132]
[1732729544443,1.2517,239.67,239.61,8.01587132]
[1732729544944,1.2516,239.69,239.63,8.01587132]
[1732729545146,9.26727132,239.72,239.63,8.01587132]
[1732729545362,9.26727132,239.72,239.65,8.01587132]
[1732729546657,20.0,239.69,239.65,8.01587132]
[1732729547347,6.01427171,239.72,239.65,12.18857132]
[1732729547554,1.2514,239.73,239.67,8.01587132]
[1732729547744,9.26727132,239.73,239.6,0.83242237]
[1732729547946,9.26727132,239.73,239.64,8.01587132]
[1732729548154,8.01587132,239.71,239.64,8.01587132]
[1732729548363,6.93149949,239.73,239.62,8.01587132]
[1732729548666,8.01587132,239.72,239.64,8.01587132]
[1732729549049,6.93149949,239.73,239.65,4.1727]
[1732729550875,5.68009949,239.73,239.66,8.01587132]
[1732729551779,6.93149949,239.73,239.65,4.1727]
[1732729552176,8.01587132,239.72,239.65,4.1727]
[1732729552468,8.01587132,239.72,239.64,8.01587132]
[1732729552683,14.94737081,239.73,239.64,12.18867132]
[1732729554459,14.94737081,239.73,239.6,4.1736]
[1732729554657,14.94737081,239.73,239.65,8.01587132]
[1732729555056,14.94737081,239.73,239.6,4.1736]
[1732729555555,14.94737081,239.73,239.64,4.1728]
[1732729556656,8.01587132,239.71,239.64,4.1728]
[1732729558989,1.2515,239.72,239.64,4.1728]
[1732729561281,9.26737132,239.71,239.64,4.1728]
[1732729561680,8.01587132,239.71,239.64,4.1728]
[1732729561881,1.2514,239.72,239.65,8.01587132]
[1732729562198,20.0,239.75,239.67,8.01587132]
[1732729562367,23.25397132,239.8,239.73,8.01587132]
[1732729562567,8.01587132,239.82,239.75,8.01587132]
[1732729562778,1.2508,239.83,239.75,8.01587132]
[1732729562987,8.01587132,239.84,239.77,8.01587132]
[1732729563206,23.43607132,239.86,239.77,8.01587132]
[1732729563496,23.43607132,239.86,239.78,4.1704]
[1732729563687,8.01587132,239.84,239.77,8.01587132]
[1732729564063,30.36687081,239.86,239.77,12.18637132]
[1732729564266,20.0,239.83,239.77,12.18637132]
[1732729565674,20.0,239.83,239.79,8.01587132]
[1732729566875,1.2505,239.9,239.8,4.1701]
[1732729567078,8.01587132,239.89,239.81,8.01587132]
[1732729567299,1.2505,239.9,239.81,8.01587132]
[1732729567300,9.26637132,239.9,239.81,8.01587132]
[1732729568094,9.26637132,239.9,239.81,12.18567132]
[1732729568299,8.01587132,239.88,239.81,12.18567132]
[1732729569195,8.01587132,239.88,239.79,8.01587132]
[1732729569391,8.01587132,239.88,239.8,4.1701]
[1732729570293,8.01587132,239.88,239.81,8.01587132]
[1732729570998,1.2503,239.93,239.83,8.01587132]
[1732729571307,8.01587132,239.98,239.89,8.01587132]
[1732729571512,8.01587132,239.98,239.91,8.01587132]
[1732729572306,12.51184131,239.98,239.9,16.68014131]
[1732729573502,12.51184131,239.98,239.9,12.51184131]
[1732729573706,12.51184131,239.94,239.86,10.595]
[1732729574779,12.51184131,239.92,239.83,12.51184131]
[1732729575001,12.51184131,239.9,239.83,12.51184131]
[1732729575204,12.51184131,239.88,239.79,22.83594131]
[1732729575410,12.51184131,239.88,239.81,12.51184131]
[1732729575585,12.51184131,239.9,239.81,12.51184131]
[1732729575781,12.51184131,239.92,239.85,12.51184131]
[1732729576001,20.0,239.89,239.85,12.51184131]
[1732729576378,12.51184131,239.94,239.87,12.51184131]
[1732729577295,12.51184131,239.94,239.87,16.68074131]
[1732729578115,12.51184131,239.96,239.89,12.51184131]
[1732729578294,13.76194131,239.98,239.89,12.51184131]
[1732729578485,12.51184131,239.98,239.91,12.51184131]
[1732729578682,23.6086068,240.0,239.91,16.67994131]
[1732729578907,16.67850731,240.0,239.93,12.51184131]
[1732729579187,4.166666,240.0,239.93,12.51184131]
[1732729579494,12.51184131,239.98,239.9,6.6192]
[1732729579710,12.51184131,239.96,239.88,20.6421]
[1732729580212,12.51184131,239.96,239.89,12.51184131]
[1732729581589,12.51184131,239.94,239.88,16.4735]
[1732729581795,12.51184131,239.94,239.85,22.86664131]
[1732729582396,12.51184131,239.94,239.87,12.51184131]
[1732729583110,32.51184131,239.96,239.87,12.51184131]
[1732729583482,32.51184131,239.96,239.87,16.68074131]
[1732729584311,20.0,239.95,239.87,16.68074131]
[1732729584489,12.51184131,239.94,239.85,18.69744131]
[1732729584689,12.51184131,239.94,239.85,22.86654131]
[1732729585395,12.51184131,239.94,239.85,16.68094131]
[1732729585886,13.76214131,239.94,239.85,16.68094131]
[1732729586088,1.2503,239.94,239.88,12.51184131]
[1732729586299,1.2503,239.94,239.86,12.51184131]
[1732729586707,13.76214131,239.94,239.86,12.51184131]
[1732729587517,12.51184131,239.92,239.83,4.1694]
[1732729587727,20.0,239.87,239.78,6.5451]
[1732729588024,12.51184131,239.84,239.75,12.51184131]
[1732729588895,12.51184131,239.82,239.75,12.51184131]
[1732729589906,12.51184131,239.82,239.75,16.68274131]
[1732729590103,12.51184131,239.84,239.77,12.51184131]
[1732729590994,20.0,239.83,239.77,16.68244131]
[1732729591815,20.0,239.85,239.79,12.51184131]
[1732729592012,1.2506,239.89,239.81,12.51184131]
[1732729593800,12.51184131,239.88,239.8,4.17]
[1732729594001,12.51184131,239.88,239.79,12.51184131]
[1732729594326,12.51184131,239.86,239.79,12.51184131]
[1732729594628,1.2505,239.9,239.83,12.51184131]
[1732729594828,12.51184131,239.91,239.83,12.51184131]
[1732729595003,1.2504,239.91,239.85,12.51184131]
[1732729595203,12.51184131,239.93,239.85,12.51184131]
[1732729595204,1.2504,239.92,239.85,12.51184131]
[1732729596208,1.2503,239.94,239.87,12.51184131]
[1732729597126,1.2503,239.94,239.85,4.1692]
[1732729597127,12.51184131,239.93,239.85,12.51184131]
[1732729598531,12.51184131,239.93,239.85,16.68094131]
[1732729598731,13.76214131,239.93,239.85,12.51184131]
[1732729598959,12.51184131,239.91,239.83,16.68134131]
[1732729599725,12.51184131,239.91,239.83,12.51184131]
[1732729600028,12.51184131,239.91,239.83,16.68134131]
[1732729600917,1.2504,239.92,239.85,12.51184131]
[1732729601730,12.51184131,239.95,239.87,12.51184131]
[1732729602032,12.51184131,239.93,239.85,12.51184131]
[1732729602231,12.51184131,239.91,239.83,16.68144131]
[1732729603632,13.76224131,239.91,239.83,16.68144131]
[1732729609045,1.2504,239.91,239.85,12.51184131]
[1732729609226,1.2504,239.92,239.85,16.68104131]
[1732729612229,13.76214131,239.93,239.85,16.68104131]
[1732729612425,13.76214131,239.95,239.87,12.51184131]
[1732729614454,9.26027095,239.95,239.86,12.17897095]
[1732729616343,8.00997095,239.98,239.88,8.00997095]
[1732729616551,1.2501,239.97,239.9,8.00997095]
[1732729617139,0.4970053,239.99,239.92,8.00997095]
[1732729617756,0.4970053,239.99,239.94,8.00997095]
[1732729618562,0.4970053,239.99,239.94,12.17757095]
[1732729619762,0.4970053,239.99,239.94,4.1676]
[1732729619931,0.4970053,239.99,239.93,4.1678]
[1732729620628,0.4970053,239.99,239.94,8.00997095]
[1732729622060,0.4970053,239.99,239.94,12.17757095]
[1732729624663,9.75697625,239.99,239.92,8.00997095]
[1732729625160,9.75697625,239.99,239.9,12.17827095]
[1732729625737,1.7470053,239.99,239.92,8.00997095]
[1732729626843,9.75697625,239.99,239.92,8.00997095]
[1732729627471,0.4970053,239.99,239.94,8.00997095]
[1732729627945,0.4970053,239.99,239.96,8.00997095]
[1732729628148,0.4970053,239.99,239.98,8.00997095]
[1732729629147,0.4970053,239.99,239.98,35.95385495]
[1732729629562,0.4970053,239.99,239.98,36.7848715]
[1732729632443,0.4970053,239.99,239.98,41.27253589]
[1732729632846,0.4970053,239.99,239.98,16.66463534]
[1732729636061,0.4970053,239.99,239.98,40.44151934]
[1732729638764,0.4970053,239.99,239.98,41.27264281]
[1732729639542,0.4970053,239.99,239.98,53.77027815]
[1732729643556,0.4970053,239.99,239.98,41.27264281]
[1732729643870,0.4970053,239.99,239.98,58.77027815]
[1732729647344,16.1383,240.15,239.99,23.776884]
[1732729647547,16.1383,240.15,240.1,23.776884]
[1732729647963,16.1383,240.15,240.09,23.776884]
[1732729648172,16.1383,240.15,240.09,36.27451934]
[1732729648351,16.1383,240.15,240.09,23.776884]
[1732729648552,17.3875,240.15,240.09,23.776884]
[1732729648753,17.3875,240.15,240.09,12.49763534]
[1732729648957,17.3875,240.15,240.08,12.49763534]
[1732729649275,29.88513534,240.15,240.07,36.27451934]
[1732729649474,29.88513534,240.15,240.08,12.49763534]
[1732729649475,17.3875,240.15,240.08,12.49763534]
[1732729649671,29.88513534,240.15,240.07,36.27451934]
[1732729651278,33.00813534,240.15,240.07,12.49763534]
[1732729651488,12.49763534,240.13,240.05,12.49763534]
[1732729651970,12.49763534,240.11,240.03,12.49763534]
[1732729652176,12.49763534,240.09,240.01,12.49763534]
[1732729652752,12.49763534,240.07,239.94,4.1677]
[1732729652965,12.49763534,240.05,239.97,12.49763534]
[1732729653455,1.2497,240.04,239.97,12.49763534]
[1732729654163,1.2497,240.04,239.98,31.77902362]
[1732729654680,15.6762,240.06,240.0,8.00213962]
[1732729654856,16.9258,240.06,240.0,8.00213962]
[1732729656358,16.9258,240.06,240.01,23.776884]
[1732729656850,24.92793962,240.06,239.98,8.00213962]
[1732729657057,16.9258,240.06,239.96,23.776884]
[1732729657274,16.9258,240.06,239.98,23.776884]
[1732729657469,8.00213962,240.05,239.98,23.776884]
[1732729658278,1.2497,240.04,239.98,23.776884]
[1732729658474,8.00213962,240.03,239.98,23.776884]
[1732729658658,8.00213962,240.03,239.96,23.776884]
[1732729659666,1.2498,240.02,239.96,23.776884]
[1732729660460,8.00213962,240.03,239.96,23.776884]
[1732729660857,8.00213962,240.03,239.9,20.0]
[1732729661061,8.00213962,240.0,239.92,8.00213962]
[1732729661970,8.00213962,240.02,239.94,8.00213962]
[1732729662178,8.00213962,240.04,239.96,8.00213962]
[1732729662774,8.00213962,240.04,239.97,23.776884]
[1732729664594,23.67833962,240.06,239.98,8.00213962]
[1732729665489,23.67833962,240.06,239.97,23.776884]
[1732729665693,15.6762,240.06,240.02,8.00213962]
[1732729665878,23.67833962,240.06,239.97,23.776884]
[1732729666079,23.67833962,240.06,239.98,8.00213962]
[1732729666777,15.6762,240.06,239.99,23.776884]
[1732729666980,15.6762,240.06,239.99,31.77902362]
[1732729667369,23.67833962,240.06,239.99,31.77902362]
[1732729667902,15.6762,240.06,239.99,31.77902362]
[1732729669384,23.67833962,240.06,239.99,31.77902362]
[1732729670479,15.6762,240.06,239.99,31.77902362]
[1732729673497,15.6762,240.06,239.99,23.776884]
[1732729673803,23.67833962,240.06,239.98,23.776884]
[1732729674039,23.67833962,240.06,239.91,0.83123649]
[1732729674040,15.6762,240.06,240.0,23.776884]
[1732729675210,23.67833962,240.06,240.0,23.776884]
[1732729675498,15.6762,240.06,240.0,23.776884]
[1732729676106,23.67833962,240.06,240.0,23.776884]
[1732729676401,23.67833962,240.06,239.99,23.776884]
[1732729676784,15.6762,240.06,239.99,23.776884]
[1732729676978,15.7226,240.12,240.04,8.00213962]
[1732729677186,23.72473962,240.12,240.04,8.00213962]
[1732729677395,8.00213962,240.1,240.02,8.00213962]
[1732729677595,8.00213962,240.1,240.03,23.776884]
[1732729679195,8.00213962,240.11,240.03,23.776884]
[1732729679586,8.00213962,240.11,240.05,23.776884]
[1732729680308,8.00213962,240.11,240.03,23.776884]
[1732729683114,8.00213962,240.1,240.03,23.776884]
[1732729683590,8.00213962,240.1,240.03,31.77902362]
[1732729684387,8.00213962,240.1,240.03,23.776884]
[1732729684584,3.11463071,240.09,240.03,23.776884]
[1732729684795,3.11463071,240.08,240.03,23.776884]
[1732729685003,3.11463071,240.07,240.03,23.776884]
[1732729685194,3.11463071,240.06,240.03,23.776884]
[1732729685395,3.11463071,240.05,240.03,23.776884]
[1732729685610,8.00213962,240.1,240.03,23.776884]
[1732729686208,8.00213962,240.08,240.01,23.776884]
[1732729689052,8.00213962,240.08,239.99,23.776884]
[1732729690515,8.00213962,240.08,240.01,23.776884]
[1732729691227,3.86830797,240.07,240.01,23.776884]
[1732729691414,8.00213962,240.06,240.01,23.776884]
[1732729691805,8.00213962,240.06,239.99,23.776884]
[1732729693300,8.00213962,240.08,240.01,23.776884]
[1732729696032,8.00213962,240.06,239.94,6.5249]
[1732729696218,12.46279406,240.08,239.97,8.00213962]
[1732729696418,8.00213962,240.06,239.99,8.00213962]
[1732729696625,1.2497,240.05,239.99,8.00213962]
[1732729697722,1.2497,240.05,239.96,23.776884]
[1732729697903,1.2497,240.05,239.98,8.00213962]
[1732729698110,8.00213962,240.04,239.95,23.776884]
[1732729698331,8.00213962,240.0,239.93,8.00213962]
[1732729698525,8.00213962,240.0,239.91,8.00213962]
[1732729698849,1.25,239.99,239.91,8.00213962]
[1732729699031,1.25,239.99,239.91,12.17033962]
[1732729699333,1.25,239.99,239.93,8.00213962]
[1732729699834,3.118193,239.98,239.93,8.00213962]
[1732729700031,3.118193,239.97,239.93,8.00213962]
[1732729700231,3.118193,239.96,239.93,8.00213962]
[1732729700437,3.118193,239.95,239.94,8.00213962]
[1732729700639,1.25,239.99,239.94,8.00213962]
[1732729700939,1.25,240.0,239.94,8.00213962]
[1732729701611,1.25,240.0,239.92,31.77902362]
[1732729702015,1.25,240.0,239.93,8.00213962]
[1732729702218,9.25213962,240.0,239.92,31.77902362]
[1732729702533,9.25213962,240.0,239.91,23.776884]
[1732729702731,9.25213962,240.0,239.93,23.776884]
[1732729703219,9.25213962,240.0,239.93,8.00213962]
[1732729706918,1.25,240.0,239.93,8.00213962]
[1732729707121,1.25,240.0,239.94,8.00213962]
[1732729707622,9.25203962,240.01,239.93,8.00213962]
[1732729708243,8.00213962,240.0,239.93,23.776884]
[1732729709935,1.25,239.99,239.93,23.776884]
[1732729710336,1.25,239.99,239.88,8.00213962]
[1732729710337,8.00213962,239.96,239.88,8.00213962]
[1732729710652,8.00213962,239.96,239.82,6.4132]
[1732729710653,8.00213962,239.96,239.87,8.00213962]
[1732729710825,8.00213962,239.94,239.87,8.00213962]
[1732729711335,8.00213962,239.94,239.82,10.5829]
[1732729711336,8.00213962,239.94,239.85,8.00213962]
[1732729711921,1.2503,239.93,239.86,23.776884]
[1732729712531,1.2503,239.93,239.87,8.00213962]
[1732729712736,1.2503,239.93,239.9,8.00213962]
[1732729713337,1.2501,239.97,239.92,8.00213962]
[1732729714055,3.1253,239.98,239.92,8.00213962]
[1732729714056,4.3754,239.98,239.92,8.00213962]
[1732729715255,4.3754,239.98,239.88,23.776884]
[1732729717356,1.2498,240.02,239.95,8.00213962]
[1732729717530,8.00213962,240.01,239.94,8.00213962]
[1732729718153,1.25,240.0,239.93,23.776884]
[1732729718351,8.00213962,239.97,239.91,23.776884]
[1732729718954,8.00213962,239.99,239.91,23.776884]
[1732729719161,8.00213962,239.99,239.92,8.00213962]
[1732729719649,4.375,240.0,239.92,8.00213962]
[1732729719853,4.375,240.0,239.94,8.00213962]
[1732729720531,4.375,240.0,239.89,24.60827581]
[1732729720853,4.375,240.0,239.93,8.00213962]
[1732729723757,8.00213962,239.99,239.92,23.776884]
[1732729723944,1.2501,239.98,239.92,23.776884]
[1732729724148,1.2501,239.98,239.91,23.776884]
[1732729724866,1.2501,239.98,239.92,8.00213962]
[1732729725937,4.375,240.0,239.92,8.00213962]
[1732729727165,12.37713962,240.0,239.92,8.00213962]
[1732729728260,17.98581739,240.0,239.92,23.776884]
[1732729729770,8.00213962,239.96,239.82,22.8386]
[1732729730065,8.00213962,239.93,239.85,8.00213962]
[1732729730745,8.00213962,239.95,239.87,8.00213962]
[1732729730946,1.2503,239.94,239.87,8.00213962]
[1732729732161,1.2503,239.94,239.88,23.776884]
[1732729732463,1.2503,239.94,239.89,8.00213962]
[1732729732965,1.2503,239.94,239.87,31.77902362]
[1732729733351,1.2503,239.94,239.87,8.00213962]
[1732729734565,1.2502,239.95,239.87,8.00213962]
[1732729735057,8.00213962,239.94,239.82,22.8386]
[1732729735266,8.00213962,239.94,239.86,8.00213962]
[1732729736159,8.00213962,239.9,239.82,8.00213962]
[1732729736556,8.00213962,239.9,239.77,4.1706]
[1732729736557,1.2505,239.89,239.77,4.1706]
[1732729736870,1.2505,239.89,239.82,8.00213962]
[1732729739253,5.2015052,239.9,239.82,8.00213962]
[1732729740684,1.2505,239.89,239.82,8.00213962]
[1732729741571,1.2505,239.89,239.76,21.91098091]
[1732729741772,1.2505,239.89,239.79,8.00213962]
[1732729741773,8.00213962,239.86,239.79,8.00213962]
[1732729742078,14.02970628,239.88,239.79,8.00213962]
[1732729742287,8.00213962,239.84,239.72,0.83171789]
[1732729742459,6.02756666,239.88,239.69,4.172]
[1732729742460,8.00213962,239.8,239.69,4.172]
[1732729742779,8.00213962,239.76,239.69,8.00213962]
[1732729743076,1.2513,239.75,239.69,8.00213962]
[1732729743285,8.00213962,239.79,239.73,8.00213962]
[1732729743490,1.2511,239.79,239.75,8.00213962]
[1732729743668,8.00213962,239.83,239.75,8.00213962]
[1732729743669,1.2509,239.82,239.75,8.00213962]
[1732729743864,8.00213962,239.81,239.73,8.00213962]
[1732729744760,1.251,239.8,239.73,8.00213962]
[1732729745662,8.00213962,239.79,239.71,8.00213962]
[1732729746375,1.251,239.8,239.72,8.00213962]
[1732729746688,28.00213962,239.82,239.73,8.00213962]
[1732729746886,1.2509,239.81,239.73,8.00213962]
[1732729748780,8.00213962,239.78,239.69,20.0]
[1732729748979,8.00213962,239.78,239.67,4.1724]
[1732729749171,8.00213962,239.78,239.69,8.00213962]
[1732729749481,8.00213962,239.76,239.69,8.00213962]
[1732729750472,1.2513,239.75,239.69,8.00213962]
[1732729750870,1.2513,239.75,239.68,8.00213962]
[1732729751591,1.2513,239.75,239.6,21.6583]
[1732729751592,8.00213962,239.72,239.64,8.00213962]
[1732729751765,15.4293,239.74,239.64,8.00213962]
[1732729751961,8.00213962,239.71,239.64,8.00213962]
[1732729752572,1.2515,239.7,239.64,8.00213962]
[1732729753693,1.2515,239.7,239.66,8.00213962]
[1732729754379,1.2515,239.7,239.64,8.00213962]
[1732729754592,1.2514,239.72,239.64,8.00213962]
[1732729757673,1.2514,239.72,239.66,8.00213962]
[1732729759273,1.2514,239.72,239.64,8.00213962]
[1732729761099,8.00213962,239.71,239.64,8.00213962]
[1732729761276,1.2514,239.72,239.64,8.00213962]
[1732729761592,1.2514,239.72,239.66,8.00213962]
[1732729763903,1.2514,239.73,239.66,8.00213962]
[1732729764591,15.4293,239.74,239.72,8.00213962]
[1732729764798,1.2512,239.77,239.72,8.00213962]
[1732729765898,18.3253,239.79,239.72,8.00213962]
[1732729765899,1.2511,239.78,239.72,8.00213962]
[1732729766577,1.2511,239.78,239.68,4.1722]
[1732729766776,1.2511,239.78,239.71,8.00213962]
[1732729768101,1.2511,239.78,239.62,10.4331]
[1732729768102,12.38103962,239.78,239.69,8.00213962]
[1732729768403,18.40860628,239.78,239.69,8.00213962]
[1732729769602,1.2511,239.78,239.73,8.00213962]
[1732729769782,6.4877,239.81,239.64,38.07635848]
[1732729769783,1.2509,239.81,239.75,8.00213962]
[1732729770886,1.2508,239.83,239.75,8.00213962]
[1732729773205,1.2508,239.83,239.73,8.00213962]
[1732729773206,8.00213962,239.82,239.73,8.00213962]
[1732729773603,1.2508,239.83,239.73,8.00213962]
[1732729773903,8.00213962,239.81,239.73,8.00213962]
[1732729774488,1.2509,239.82,239.75,8.00213962]
[1732729776089,16.5796,239.85,239.79,8.00213962]
[1732729776090,1.2508,239.84,239.79,8.00213962]
[1732729776998,1.2507,239.86,239.81,8.00213962]
[1732729777201,1.2507,239.86,239.8,8.00213962]
[1732729777803,1.2506,239.88,239.8,8.00213962]
[1732729778813,8.00213962,239.87,239.8,8.00213962]
[1732729779892,1.2506,239.88,239.8,8.00213962]
[1732729780597,1.2506,239.88,239.82,8.00213962]
[1732729781800,1.2505,239.9,239.82,8.00213962]
[1732729782394,1.2505,239.9,239.8,4.17]
[1732729782595,1.2505,239.9,239.82,8.00213962]
[1732729783307,8.00213962,239.89,239.8,8.00213962]
[1732729784716,1.2506,239.88,239.8,8.00213962]
[1732729785890,8.00213962,239.87,239.78,8.00213962]
[1732729786096,8.00213962,239.85,239.76,8.00213962]
[1732729787597,1.2508,239.84,239.76,8.00213962]
[1732729787803,1.2508,239.84,239.78,8.00213962]
[1732729789593,20.0,239.87,239.81,8.00213962]
[1732729790012,20.0,239.87,239.79,8.00213962]
[1732729790428,28.00213962,239.88,239.79,8.00213962]
[1732729791005,1.2506,239.87,239.79,8.00213962]
[1732729791513,1.2506,239.87,239.81,8.00213962]
[1732729793412,1.2506,239.87,239.76,4.1708]
[1732729793611,1.2506,239.87,239.79,8.00213962]
[1732729794016,1.2506,239.87,239.76,4.1708]
[1732729794217,1.2506,239.87,239.78,8.00213962]
[1732729794528,1.2506,239.87,239.75,4.171]
[1732729794714,1.2506,239.87,239.78,8.00213962]
[1732729795023,1.2506,239.87,239.75,4.171]
[1732729795024,1.2506,239.87,239.76,23.776884]
[1732729795228,1.2506,239.87,239.78,8.00213962]
[1732729796113,4.3772,239.87,239.78,8.00213962]
[1732729796300,8.00213962,239.86,239.78,8.00213962]
[1732729796918,4.3772,239.87,239.75,20.0]
[1732729797115,8.00213962,239.86,239.78,8.00213962]
[1732729797830,1.2507,239.85,239.78,8.00213962]
[1732729803811,21.2506,239.87,239.78,8.00213962]
[1732729804011,6.89382888,239.87,239.8,8.00213962]
[1732729804232,1.2506,239.87,239.8,8.00213962]
[1732729805135,9.25273962,239.87,239.8,8.00213962]
[1732729805438,9.25273962,239.87,239.75,20.0]
[1732729805439,8.00213962,239.85,239.75,20.0]
[1732729805634,8.00213962,239.85,239.75,8.00213962]
[1732729806115,5.45676554,239.85,239.77,8.00213962]
[1732729806311,5.45676554,239.85,239.79,8.00213962]
[1732729806541,1.2507,239.85,239.79,8.00213962]
[1732729807813,1.2506,239.87,239.79,8.00213962]
[1732729808435,6.70288777,239.87,239.79,8.00213962]
[1732729809162,1.2506,239.87,239.81,8.00213962]
[1732729810208,1.2505,239.89,239.81,8.00213962]
[1732729810412,8.00213962,239.88,239.81,8.00213962]
[1732729810634,13.21151516,239.88,239.81,8.00213962]
[1732729810837,5.20937554,239.87,239.81,8.00213962]
[1732729811734,16.4267,239.91,239.83,8.00213962]
[1732729811931,1.2505,239.9,239.85,8.00213962]
[1732729812443,1.2502,239.95,239.87,8.00213962]
[1732729812612,6.45957554,239.96,239.89,8.00213962]
[1732729812818,5.20937554,239.96,239.91,8.00213962]
[1732729813028,6.45957554,239.96,239.91,8.00213962]
[1732729813941,30.9294238,240.02,239.93,8.00213962]
[1732729814127,1.2499,240.01,239.95,8.00213962]
[1732729814333,22.86027554,240.02,239.97,8.00213962]
[1732729814534,22.86027554,240.02,239.95,8.00213962]
[1732729815933,5.20937554,240.01,239.93,8.00213962]
[1732729816231,5.20937554,240.01,239.89,8.00213962]
[1732729816232,8.00213962,239.98,239.89,8.00213962]
[1732729816739,5.20937554,239.97,239.89,8.00213962]
[1732729817550,1.2502,239.96,239.89,8.00213962]
[1732729818052,5.20937554,239.97,239.91,8.00213962]
[1732729818248,1.2501,239.98,239.91,8.00213962]
[1732729818649,6.45947554,239.98,239.91,8.00213962]
[1732729820758,16.4011,240.02,239.95,8.00213962]
[1732729820957,1.2499,240.01,239.95,8.00213962]
[1732729821553,9.25203962,240.01,239.93,8.00213962]
[1732729821762,14.46141516,240.01,239.93,8.00213962]
[1732729823762,6.45927554,240.01,239.95,8.00213962]
[1732729823965,17.651,240.02,239.95,8.00213962]
[1732729824462,16.4011,240.02,239.95,8.00213962]
[1732729824649,8.00213962,240.03,239.95,8.00213962]
[1732729824853,5.20937554,240.04,239.95,8.00213962]
[1732729825658,6.45917554,240.04,239.95,12.16953962]
[1732729826760,13.21151516,240.03,239.93,8.00213962]
[1732729827141,13.21151516,240.03,239.92,4.168]
[1732729827336,5.20937554,240.03,239.94,8.00213962]
[1732729827543,13.21151516,240.03,239.94,8.00213962]
[1732729827741,14.46131516,240.03,239.95,4.1675]
[1732729829476,14.46131516,240.03,239.96,8.00213962]
[1732729830782,6.45917554,240.03,239.96,12.16943962]
[1732729830948,14.46131516,240.03,239.96,12.16943962]
[1732729832445,5.20937554,240.03,239.96,12.16943962]
[1732729832659,9.25173962,240.06,239.98,8.00213962]
[1732729833664,9.25173962,240.06,239.98,12.16893962]
[1732729833872,8.00213962,240.06,239.98,4.1668]
[1732729834065,6.45897554,240.08,239.98,12.16893962]
[1732729834373,6.45897554,240.08,240.0,8.00213962]
[1732729834374,5.20937554,240.08,240.0,8.00213962]
[1732729834576,13.21151516,240.08,240.0,8.00213962]
[1732729835162,14.46101516,240.08,240.0,8.00213962]
[1732729835344,14.46101516,240.08,239.98,4.1668]
[1732729835345,14.46101516,240.08,239.98,12.16893962]
[1732729835864,8.00213962,240.06,239.98,12.16893962]
[1732729837467,9.25183962,240.06,239.98,12.16893962]
[1732729838073,8.00213962,240.04,239.95,8.00213962]
[1732729838954,14.9206485,240.04,239.96,4.1673]
[1732729839272,14.9206485,240.04,239.97,8.00213962]
[1732729839475,8.00213962,240.06,239.99,8.00213962]
[1732729840152,1.2496,240.07,239.99,8.00213962]
[1732729840353,7.329,240.09,239.99,8.00213962]
[1732729840572,8.00213962,240.08,239.99,8.00213962]
[1732729841150,1.2496,240.07,239.99,12.16883962]
[1732729841683,8.00213962,240.08,240.01,8.00213962]
[1732729842347,15.3801,240.1,240.01,8.00213962]
[1732729843268,8.00213962,240.09,240.02,4.1663]
[1732729843463,8.00213962,240.09,240.01,12.16853962]
[1732729843885,13.35581516,240.09,240.01,4.1664]
[1732729844056,8.00213962,240.07,240.01,4.1664]
[1732729844869,8.00213962,240.07,240.0,4.1666]
[1732729845753,6.60317554,240.09,240.0,4.1666]
[1732729845956,8.00213962,240.08,240.0,4.1666]
[1732729846281,6.60317554,240.09,240.0,4.1666]
[1732729846481,8.00213962,240.08,240.0,4.1666]
[1732729846983,9.25163962,240.08,240.0,4.1666]
[1732729847372,9.25163962,240.08,239.99,8.00213962]